Workbook

Sheet Analisis Profitabilitas
B2: Analisis Profitabilitas Pelanggan
B3: 20 Januari 2013 | D3: NAMA PERUSAHAAN
B6: Aktivitas Pelanggan | C6: Pelanggan 1 | D6: Pelanggan 2 | E6: Pelanggan 3 | F6: Keseluruhan
B7: Jumlah Pelanggan Aktif-Akhir Periode | C7: 5 | D7: 8 | E7: 8 | F7: =SUM(C7:E7) -> 21
B8: Jumlah Pelanggan yang Bertambah | C8: 2 | D8: 4 | E8: 4 | F8: =SUM(C8:E8) -> 10
B9: Jumlah Pelanggan yang Hilang | C9: (1) | D9: (2) | E9: (2) | F9: (5)
B10: Jumlah Pelanggan Aktif-Akhir Periode | C10: =SUBTOTAL(109,'Analisis Profitabilitas'!$C$7:$C$9) -> 6 | D10: =SUBTOTAL(109,'Analisis Profitabilitas'!$D$7:$D$9) -> 10 | E10: =SUBTOTAL(109,'Analisis Profitabilitas'!$E$7:$E$9) -> 10 | F10: 26
B12: Analisis Profitabilitas
B13: Pendapatan Per Segmen | C13: Rp1,500,000 | D13: Rp1,800,000 | E13: Rp2,500,000 | F13: =SUM('Analisis Profitabilitas'!$C13:$E13) -> Rp5,800,000
B14: Pembobotan | C14: =C13/$F$13 -> 25.9% | D14: =D13/$F$13 -> 31.0% | E14: 43.1% | F14: =SUM(C14:E14) -> 100.0%
B16: Biaya Penjualan
B17: Biaya Layanan dan Dukungan yang Berjalan | C17: Rp1,000,000 | D17: Rp1,400,000 | E17: Rp1,400,000 | F17: =SUM('Analisis Profitabilitas'!$C17:$E17) -> Rp3,800,000
B18: Biaya Pelanggan Langsung Lainnya | C18: 200,000 | D18: 100,000 | E18: 100,000 | F18: =SUM('Analisis Profitabilitas'!$C18:$E18) -> 400,000
B19: Total Biaya Penjualan | C19: =SUBTOTAL(109,'Analisis Profitabilitas'!$C$17:$C$18) -> 1,200,000 | D19: =SUBTOTAL(109,'Analisis Profitabilitas'!$D$17:$D$18) -> 1,500,000 | E19: =SUBTOTAL(109,'Analisis Profitabilitas'!$E$17:$E$18) -> 1,500,000 | F19: =SUBTOTAL(109,'Analisis Profitabilitas'!$F$17:$F$18) -> 4,200,000
B20: Margin Kotor | C20: =C13-'Analisis Profitabilitas'!$C$19 -> Rp300,000 | D20: =D13-'Analisis Profitabilitas'!$D$19 -> Rp300,000 | E20: =E13-'Analisis Profitabilitas'!$E$19 -> Rp1,000,000 | F20: =F13-'Analisis Profitabilitas'!$F$19 -> Rp1,600,000
B21: Pembobotan | C21: =MAX(0,MIN(1,C20/$F$20)) -> 18.8% | D21: =MAX(0,MIN(1,D20/$F$20)) -> 18.8% | E21: 62.5% | F21: =SUM('Analisis Profitabilitas'!$C21:$E21) -> 100.0%
B23: Biaya Lainnya
B24: Akusisi Pelanggan | C24: Rp105,000 | D24: Rp120,000 | E24: Rp235,000 | F24: =SUM('Analisis Profitabilitas'!$C24:$E24) -> Rp460,000
B25: Pemasaran Pelanggan | C25: 150,000 | D25: 125,000 | E25: 275,000 | F25: =SUM('Analisis Profitabilitas'!$C25:$E25) -> Rp550,000
B26: Penghentian Pelanggan | C26: 80,000 | D26: 190,000 | E26: 140,000 | F26: =SUM('Analisis Profitabilitas'!$C26:$E26) -> Rp410,000
B27: Total Biaya Pelanggan Lainnya | C27: =SUBTOTAL(109,'Analisis Profitabilitas'!$C$24:$C$26) -> 335,000 | D27: =SUBTOTAL(109,'Analisis Profitabilitas'!$D$24:$D$26) -> 435,000 | E27: =SUBTOTAL(109,'Analisis Profitabilitas'!$E$24:$E$26) -> 650,000 | F27: =SUBTOTAL(109,'Analisis Profitabilitas'!$F$24:$F$26) -> 1,420,000
B29: Laba Pelanggan berdasarkan Segmen | C29: =C20-C27 -> (Rp35,000) | D29: =D20-D27 -> (Rp135,000) | E29: =E20-E27 -> Rp350,000 | F29: =F20-'Analisis Profitabilitas'!$F$27 -> Rp180,000
B30: Pembobotan | C30: =MAX(0,MIN(1,C29/$F$29)) -> 0.0% | D30: =MAX(0,MIN(1,D29/$F$29)) -> 0.0% | E30: 100.0% | F30: =SUM('Analisis Profitabilitas'!$C30:$E30) -> 100.0%
B32: Metrik Ringkasan
B33: Rata-Rata Biaya per Pelanggan yang Diperoleh | C33: =C24/C8 -> Rp52,500 | D33: =D24/D8 -> Rp30,000 | E33: =E24/E8 -> Rp58,750
B34: Rata-Rata Biaya per Pelanggan yang Hilang | C34: =-C26/C9 -> Rp80,000 | D34: =-D26/D9 -> Rp95,000 | E34: =-E26/E9 -> Rp70,000
B35: Rata-Rata Biaya Pemasaran per Pelanggan Aktif | C35: =C25/'Analisis Profitabilitas'!$C$10 -> Rp25,000 | D35: =D25/'Analisis Profitabilitas'!$D$10 -> Rp12,500 | E35: =E25/'Analisis Profitabilitas'!$E$10 -> Rp27,500
B36: Rata-Rata Laba atau Rugi Per Pelanggan | C36: =C29/'Analisis Profitabilitas'!$C$10 -> (Rp5,833.33) | D36: =D29/'Analisis Profitabilitas'!$D$10 -> (Rp13,500.00) | E36: =E29/'Analisis Profitabilitas'!$E$10 -> Rp35,000.00

Sheet Bagan Metrik Ringkasan
B2: Metrik Ringkasan per Pelanggan
B3: =ReportDate -> 20 Januari 2013 | R3: =CompanyName -> NAMA PERUSAHAAN
